Cogmind - Beta 15 @@@ ROGUE MODE // 2025.05.24 @ 18:12:30 Player: celerysam Result: Destroyed by 9A-L6B(R) with Subdweller Machine Gun Performance ------------- Evolutions (0) 0 Regions Visited (2) 400 Robots Destroyed (16) 80 Value Destroyed (396) 396 Prototype IDs (0) 0 Alien Tech Used (0) 0 Bonus (0) 0 TOTAL SCORE: 876 Bonus ------- None Cogmind --------- Core Integrity 0/250 Matter 182/300 Energy 250/250 System Corruption 0% Temperature Cool (0) Movement Rolling (105) Ox1 Location -10/Subcaves Parts ------- > --- POWER (1) -------- Ion Engine > --- PROPULSION (2) --- Wheel Compact Wheel > --- UTILITY (2) ------ Large Storage Unit Makeshift Light Armor Plating > --- WEAPON (2) ------- Particle Gun Light Cannon > --- INVENTORY (15) --- Ion Engine Light Treads Aluminum Leg Small Storage Unit Sensor Array Signal Interpreter Targeting Computer ECM Suite ECM Suite Makeshift Light Armor Plating Small Laser Mining Laser Peak State ------------ > --- POWER ------------ Ion Engine > --- PROPULSION ------- Wheel Compact Wheel > --- UTILITY ---------- Large Storage Unit Makeshift Light Armor Plating > --- WEAPON ----------- Particle Gun Mining Laser > --- INVENTORY -------- Ion Engine Light Treads Aluminum Leg Small Storage Unit Sensor Array Signal Interpreter Targeting Computer ECM Suite ECM Suite Small Laser Light Cannon [Rating: 12] Favorites ----------- Power Ion Engine Engine Ion Engine Propulsion Light Treads Treads Light Treads Leg Aluminum Leg Wheel Wheel Utility Small Storage Unit Device ECM Suite Storage Small Storage Unit Protection Makeshift Light Armor Plating Weapon Assault Rifle Energy Gun Particle Gun Ballistic Gun Assault Rifle Ballistic Cannon Light Cannon Special Weapon Mining Laser Build | -11 -10 -10 ------- Run | Yrd Mat Sub Slots Evolved . | . . . Power . | . . . Propulsion . | . . . Utility . | . . . Weapon . | . . . Parts Attached 20 | 6 13 1 Power 3 | 1 2 . Engine 3 | 1 2 . Core . | . . . Reactor . | . . . Propulsion 7 | 2 5 . Treads 3 | . 3 . Leg 2 | 2 . . Wheel 2 | . 2 . Hover . | . . . Flight . | . . . Utility 4 | 1 2 1 Device 1 | . 1 . Storage 2 | 1 1 . Processor . | . . . Hackware . | . . . Protection 1 | . . 1 Artifact . | . . . Weapon 6 | 2 4 . Energy Gun 2 | 1 1 . Energy Cannon . | . . . Ballistic Gun 2 | 1 1 . Ballistic Cannon 1 | . 1 . Launcher . | . . . Special Weapon 1 | . 1 . Impact Weapon . | . . . Slashing Weapon . | . . . Piercing Weapon . | . . . Special Melee Weapon . | . . . Unidentified Prototypes . | . . . Parts Lost 7 | . 7 . Power 2 | . 2 . Propulsion 3 | . 3 . Utility . | . . . Weapon 2 | . 2 . Highest Loss Streak 4 | . 4 . To Critical Strikes . | . . . Average Backups 7 | 4 7 10 Power . | . . 1 Propulsion 3 | 3 3 2 Utility 1 | . 1 5 Weapon 1 | . 1 2 Tool/Special . | . . . Unused Backups 6 | . . 6 Power 1 | . . 1 Propulsion . | . . . Utility 4 | . . 4 Weapon 1 | . . 1 Tool/Special . | . . . Average Slot Usage (%) 91 | . 90 100 Engine 12 | . 11 14 Treads 15 | . 16 . Leg 2 | . 2 . Wheel 8 | . 6 28 Device 11 | . 11 7 Storage 14 | . 14 14 Energy Gun 6 | . 6 14 Ballistic Gun 14 | . 16 . Ballistic Cannon 2 | . 2 1 Special Weapon 1 | . 1 12 Peak Build Rating 12 | 6 9 12 Average Rating 6 | 3 6 10 On Entrance 5 | . 6 9 Naked Turns . | . . . Heaviest Build 35 | 14 33 35 Greatest Support 40 | 20 40 26 Greatest Overweight (x) 1 | 1 1 1 Average Overweight (x) . | . . 1 Largest Inventory Capacity 15 | 8 15 15 Average Capacity 8 | 6 8 15 Most Carried 12 | 6 10 12 Average Carried 7 | 4 7 10 Final Capacity 15 | 8 15 15 Final Carried 12 | 6 10 12 Class Distribution -------------------- 100% | Mutant Dominant Class ---------------- Mutant | -10/Materials Mutant | -10/Subcaves Resources | -11 -10 -10 ----------- Run | Yrd Mat Sub Matter Collected 442 | 217 225 . Remotely . | . . . Salvage Created 502 | . 502 . Parts 19 | . 19 . Haulers Intercepted 1 | . 1 . Recyclers Shooed . | . . . Parts Field Recycled . | . . . Retrieved Matter . | . . . Parts Self-Destructed . | . . . Prevented . | . . . Kills | -11 -10 -10 ------- Run | Yrd Mat Sub Combat Hostiles Destroyed 14 | . 14 . Guns 13 | . 13 . AOE 1 | . 1 . Classes Destroyed 4 | . 4 . Hauler 1 | . 1 . Watcher 1 | . 1 . Swarmer 6 | . 6 . Grunt 8 | . 8 . Best Kill Streak 5 | . 5 . Combat Bots Only 5 | . 5 . Max Kills in Single Turn 1 | . 1 . Gunslinging . | . . . Exploded 1 | . 1 . Melee . | . . . Uniques/NPCs Destroyed . | . . . Combat | -11 -10 -10 -------- Run | Yrd Mat Sub Hostile Shots Fired 134 | . 133 1 Missed 27 | . 27 . Hits 107 | . 106 1 Projectile 107 | . 106 1 Critical Strikes 4 | . 3 1 Damage Taken 1150 | . 1126 24 Core 265 | . 241 24 Absorbed by Shields . | . . . Regen/Repaired (Parts) 64 | . 64 . Core Remaining (%) 100 | 100 . . Volleys Fired 59 | . 58 1 Largest 2 | . 2 1 Hottest 100 | . 100 100 Shots Fired 104 | . 103 1 Gun 101 | . 101 . Cannon 1 | . 1 . Launcher . | . . . Special 2 | . 1 1 Kinetic 81 | . 81 . Thermal 16 | . 15 1 Explosive . | . . . Electromagnetic 7 | . 7 . Robot Hit Streak 11 | . 11 . Robot Miss Streak 4 | . 4 . Penetration Max . | . . . Secondary Targets 1 | . 1 . Max Gunslinging Chain 1 | . 1 . Shots Hit Robots 67 | . 67 . Core Hits 28 | . 28 . Critical Kills . | . . . Critical Parts Destroyed . | . . . Critical Strikes 2 | . 2 . Burn 2 | . 2 . Melee Attacks . | . . . Impact . | . . . Slashing . | . . . Piercing . | . . . Sneak Attacks . | . . . Combat Hostiles . | . . . Follow-up Attacks . | . . . Damage Inflicted 884 | . 884 . Guns 808 | . 808 . Cannons 15 | . 15 . Explosions 57 | . 57 . Melee . | . . . Ramming 4 | . 4 . Kinetic 600 | . 600 . Thermal 230 | . 230 . Explosive . | . . . Electromagnetic 50 | . 50 . Impact . | . . . Slashing . | . . . Piercing . | . . . Highest Corruption . | . . . Average Corruption . | . . . Corruption Purged . | . . . Corruption Blocked . | . . . Overload Shots . | . . . Overflow Damage 20 | . 20 . Projectiles . | . . . Explosions 20 | . 20 . Melee . | . . . Knockbacks . | . . . Impact . | . . . Kinetic . | . . . Secondary . | . . . Self-Inflicted Damage 35 | . 35 . Shots 1 | . 1 . Rammed 1 | . 1 . Targets Rammed 1 | . 1 . Kicked . | . . . Crushed . | . . . Highest Temperature 143 | . 143 . Average Temperature 37 | . 37 . Received Heat Transfer 489 | . 489 . Siege Activations . | . . . Martial Activations . | . . . Shielding Activations . | . . . Robots Disrupted . | . . . Combat Hostiles . | . . . Robots Corrupted . | . . . Combat Hostiles . | . . . Parts Fried . | . . . Impact Corruptions . | . . . Robots Melted . | . . . Combat Hostiles . | . . . Parts Melted . | . . . Heat Transferred 655 | . 655 . Parts Sabotaged . | . . . Parts Stolen . | . . . Parts Stripped . | . . . Power Chain Reactions 1 | . 1 . Alert | -11 -10 -10 ------- Run | Yrd Mat Sub Maximum Alert Level . | . . . Low Security (%) 100 | 100 100 . Level 1 . | . . . Level 2 . | . . . Level 3 . | . . . Level 4 . | . . . Level 5 . | . . . High Security . | . . . Max Security . | . . . Peak Influence 124 | . 124 . Initial . | . . . Average 34 | . 35 . Influence Increases 427 | . 427 . Destroy 0b10 Robot/C 280 | . 280 . Destroy 0b10 Robot/NC 10 | . 10 . Destroy Leader 64 | . 64 . Successful Hack 5 | . 5 . Disable Machine 30 | . 30 . Destroy Structure 8 | . 8 . Lose Combat Pursuer 30 | . 30 . Influence Decreases 427 | . 427 . Time Decay 357 | . 357 . Lost Part 70 | . 70 . Squads Dispatched 2 | . 2 . Investigation 1 | . 1 . Extermination . | . . . Reinforcement 1 | . 1 . Assault . | . . . Garrison . | . . . Intercept . | . . . Searches Triggered . | . . . Construction Impeded . | . . . Haulers Reinforced . | . . . Active Scanning Responses . | . . . Cargo Convoy Interrupts . | . . . Stealth | -11 -10 -10 --------- Run | Yrd Mat Sub Distress Signals 5 | . 5 . Communications Jammed . | . . . Distress Signals . | . . . Times Spotted 33 | . 32 1 Peak Tracking Total 6 | . 6 . Tactical Retreats 5 | . 5 . Traps | -11 -10 -10 ------- Run | Yrd Mat Sub Traps Triggered 1 | . 1 . Indirectly . | . . . Trap Hack Attempts . | . . . Triggered . | . . . Disarmed . | . . . Reprogrammed . | . . . Reused . | . . . Traps Extracted . | . . . Installed . | . . . Triggered . | . . . Machines | -11 -10 -10 ---------- Run | Yrd Mat Sub Machines Disabled 2 | . 2 . Max in Single Turn 1 | . 1 . Machines Repaired . | . . . Machines Dismantled . | . . . Machines Sabotaged . | . . . Overloaded Fab Kills . | . . . Hacking | -11 -10 -10 --------- Run | Yrd Mat Sub Machines Accessed 3 | . 3 . Terminals 1 | . 1 . Fabricators . | . . . Repair Stations 1 | . 1 . Recycling Units 1 | . 1 . Scanalyzers . | . . . Garrison Access . | . . . Total Hacks 6 | . 6 . Successful 5 | . 5 . Failed 1 | . 1 . Catastrophic . | . . . Database Lockouts . | . . . Manual 1 | . 1 . Terminals 2 | . 2 . Fabricators . | . . . Repair Stations 2 | . 2 . Recycling Units 2 | . 2 . Scanalyzers . | . . . Garrison Access . | . . . Terminal Hacks . | . . . Fabricator Hacks . | . . . Repair Station Hacks 2 | . 2 . Scan Component 1 | . 1 . Repair 1 | . 1 . Recycling Unit Hacks 2 | . 2 . Report Inventory 2 | . 2 . Scanalyzer . | . . . Garrison Access Hacks . | . . . Unauthorized Hacks 1 | . 1 . Terminals 1 | . 1 . Botnet 1 | . 1 . Fabricators . | . . . Repair Stations . | . . . Recycling Units . | . . . Scanalyzers . | . . . Garrison Access . | . . . Data Cores Recovered . | . . . Used . | . . . Hacking Detections 1 | . 1 . Full Trace Events . | . . . Feedback Events . | . . . Feedback Blocked . | . . . Robot Schematics Acquired . | . . . Robots Built . | . . . Authchips . | . . . Time . | . . . Total Robot Build Rating . | . . . Part Schematics Acquired . | . . . Parts Built . | . . . Authchips . | . . . Time . | . . . Total Part Build Rating . | . . . Parts Repaired 1 | . 1 . Time 32 | . 32 . Parts Recycled . | . . . Recycled Matter . | . . . Retrieved Matter . | . . . Retrieved Components . | . . . Parts Scanalyzed . | . . . Part Schematics Acquired . | . . . Parts Damaged . | . . . Bothacking | -11 -10 -10 ------------ Run | Yrd Mat Sub Used RIF Installer . | . . . Robots Hacked . | . . . Non-combat . | . . . Combat . | . . . Robot Hacks Applied . | . . . Relay Couplers Released . | . . . Fabnet Peak Effective % . | . . . Robots Rewired . | . . . Allies Hacked . | . . . Hacks Repelled . | . . . Allies | -11 -10 -10 -------- Run | Yrd Mat Sub Total Allies . | . . . Largest Group . | . . . Highest-Rated Group . | . . . Highest-Rated Ally . | . . . Total Orders . | . . . Ally Attacks . | . . . Total Damage . | . . . Kills . | . . . Allies Corrupted . | . . . Allies Melted . | . . . Intel | -11 -10 -10 ------- Run | Yrd Mat Sub Active Infowar (turns) 805 | . 760 45 ECM 805 | . 760 45 Robot Analysis Total . | . . . Derelict Logs Recovered . | . . . Drone Launches . | . . . Drone Recoveries . | . . . Exploration | -11 -10 -10 ------------- Run | Yrd Mat Sub Turns Passed 1249 | 62 1106 81 Spaces Moved 655 | 52 535 68 Core 22 | 22 . . Treads 249 | . 249 . Legs 85 | 30 55 . Wheels 299 | . 231 68 Hover . | . . . Flight . | . . . Fastest Speed 50 | 50 90 105 Average Speed 122 | 91 127 105 Slowest Speed 160 | 120 160 105 Overloaded Moves . | . . . Propulsion Burnouts . | . . . Robots Hopped . | . . . Potential Cave-ins . | . . . Cave-ins Triggered . | . . . Exploration Rate (%) 30 | 3 78 9 Regions Visited 2 Branch Regions 1 Pre-discovered Areas 1 | . . 1 Known Exits Taken . | . . . Unknown Exits Taken 2 | 1 1 . Scrap Searched . | . . . Spaces Dug . | . . . Terrain Destroyed 7 | . 7 . Melee . | . . . Projectile . | . . . AOE 7 | . 7 . Terrain Rammed . | . . . Walls Destroyed . | . . . Machines Disabled . | . . . Actions | -11 -10 -10 --------- Run | Yrd Mat Sub Total 993 | 63 856 74 Wait 235 | . 235 . Move 653 | 51 534 68 Hop . | . . . Pick Up 21 | 6 13 2 Fast Attach 7 | 6 1 . Attach 10 | . 9 1 Detach 1 | . . 1 Swap 5 | . 4 1 Drop 1 | . 1 . Fire 59 | . 58 1 Melee . | . . . Ram 1 | . 1 . Kick . | . . . Crush . | . . . Escape Stasis . | . . . Rewire . | . . . Trap . | . . . Miscellaneous . | . . . Route ------- -11/Scrapyard -10/Materials (discovered 3 exits: [*Mat] / [*Min] / [*Sub]) -10/Subcaves History --------- Turn | Location | Event 18 | -11/Scrapyard | Discovered new exit (range 16) 63 | -11/Scrapyard | Entered Materials 195 | -10/Materials | Lost 3 parts (1p1n1w) 285 | -10/Materials | Core integrity fell below 50% 305 | -10/Materials | Build established: Mutant 754 | -10/Materials | Core integrity fell below 20% 782 | -10/Materials | Lost 4 parts (1p2n1w) 876 | -10/Materials | Discovered new exit (range 11) 954 | -10/Materials | Repaired Particle Gun 1105 | -10/Materials | Discovered new exit (range 8) 1160 | -10/Materials | Discovered new exit (range 9) 1169 | -10/Materials | Entered Subcaves 1170 | -10/Subcaves | Approached by a straggling Scientist 1195 | -10/Subcaves | Learned location of Zion (-6) 1195 | -10/Subcaves | Met a Zionite searching for "candidates" 1205 | -10/Subcaves | Shifting Twisted Machinery released Mak. Light Armor Plating 1220 | -10/Subcaves | Shifting Twisted Machinery released Mak. Light Armor Plating 1250 | -10/Subcaves | Destroyed by 9A-L6B(R) with Subdweller Machine Gun Last Messages --------------- all the Subs lurking out here." 01173_ DQ-FOW(c): "Hey, let me tag along and I can get us both out of this nasty situation. At least I think I can... The group I got separated from was talking about a shortcut back to the UFD." 01180_ TO-QQE(z): "She is not going to be happy we haven't found any suitable candidates yet." 01195_ TO-QQE(z): "Hey you! It's really dangerous down here, I feel that you could die at any moment. For your health and safety might I suggest a trip to Zion?" World map updated: -6/Zion. Mak. Light Armor Plating falls loose from the Twisted Machinery. 01214_ Acquired Mak. Light Armor Plating. DQ-FOW(c): "I think it's somewhere east of here" Mak. Light Armor Plating falls loose from the Twisted Machinery. 01234_ Acquired Mak. Light Armor Plating. Map ----- +----------------------------------------------------+ | ?????????# #????????????????????????????????? | | ?????????#### ##???????????????????????????????? | | ????????????### #######?????????????????????????? | | ??????????????## ##????????????????????????? | | ???????????????# #????????????????????????? | | ???????????????## #????????????????????????? | | ????????????????# #????????????????????????? | | ????????????????# ##????????????????????????? | | ????????????????# #?#?#?????????????????????? | | ????????????????# # # ??????????????????????? | | ????????????????## # ????????????????????? | | ???????????????### """ " ????????????????????? | | ???????????????# "" " # ????????????????? | | ???????????????## """ #####???? ????????????????? | | ????????????????# """##??????????????????????????? | | ????????????????## "##??????????????????????????? | | ????????????? "??## ##?????????????????????????? | | ??????????? ""### ##????????????????????????? | | ??????????? """" "###??????????????????????? | | ???????????###"#"" """ #??????????????????????? | | ???????????????##"" """##??????????????????????? | | ????????????????# " c ""#???????????????????????? | | ????????????????# " ## #???????????????????????? | | ???????????????## "### ######??????????????????? | | ????????????####" ### # ##?????????????????? | | ???????????#""""" @ R#?????????????????? | | ???????????#" "" "" # #???????????????? | | ???????????### "" " # # #??????????????????? | | ?????????????################# #?????????????????? | | ??????????????????????????????##?????????????????? | | ?????????????????????????????????????????????????? | | ?????????????????????????????????????????????????? | | ?????????????????????????????????????????????????? | | ?????????????????????????????????????????????????? | | ?????????????????????????????????????????????????? | | ?????????????????????????????????????????????????? | | ?????????????????????????????????????????????????? | | ?????????????????????????????????????????????????? | | ?????????????????????????????????????????????????? | | ?????????????????????????????????????????????????? | | ?????????????????????????????????????????????????? | | ?????????????????????????????????????????????????? | | ?????????????????????????????????????????????????? | | ?????????????????????????????????????????????????? | | ?????????????????????????????????????????????????? | | ?????????????????????????????????????????????????? | | ?????????????????????????????????????????????????? | | ?????????????????????????????????????????????????? | | ?????????????????????????????????????????????????? | | ?????????????????????????????????????????????????? | +----------------------------------------------------+ Best States ------------- Heat Dissipation 25 Energy Generation 10 Energy Capacity 250 Matter Stores 258 Matter Capacity 300 Sight Range 16 Terrain Scan Density 10 ECM Strength 1 Armor Coverage 100 Evasion (%) 55 Recoil Reduction 2 Item Schematics ----------------- None Robot Schematics ------------------ None Fabricated ------------ Nothing Repaired ---------- Particle Gun | 14% | -10/Materials Alien Tech Used ----------------- None Achievements -------------- None Challenges ------------ None Game ------ Seed ShadeSlugStripper Manual? 0 Play Time 00:09:35 Cumulative 260.9 hours Start 2025.05.24 @ 17:57:24 End 2025.05.24 @ 18:12:30 Sessions 1 Manual Loads 0 Difficulty Rogue Special Mode None Game No. 392 Rogue 392 Adventurer 0 Explorer 0 Win Type - Total 1 Types 1/0/0/0/0/0/0/0/0/0 Lore% 63 Gallery% 62 Achievement% 43 Wizard Run 0 Options --------- Layout 1 ASCII 0 Keyboard 0 Movement Mouse Keybinds 0 Fullscreen 2 Font 24/Smallcaps Map View 50x35 Zoom Use 0% Tactical HUD 1 Map Filters NONE Filters NONE Steam 1 RUN: ac90a42b-2cf1-44be-91e5-221db28611e2